fUST/lending_fUST_20250901
["ID","MTS","AMOUNT","RATE_DAILY","PERIOD"]
[382636315,1756689062366,-480.0,0.0001689,2]
[382636316,1756689062376,-480.0,0.0001689,2]
[382636317,1756689062386,-480.0,0.0001689,2]
[382636318,1756689062396,-480.0,0.0001689,2]
[382636319,1756689062405,-745.56,0.0001689,2]
[382636320,1756689062415,-1078.85,0.0001689,2]
[382636321,1756689062426,-480.0,0.0001689,2]
[382636322,1756689062436,-1007.05,0.0001689,2]
[382636323,1756689062447,-151.0,0.0001689,2]
[382636324,1756689062456,-151.0,0.0001689,2]
[382636325,1756689062465,-151.0,0.0001689,2]
[382636326,1756689062475,-498.04,0.0001689,2]
[382636327,1756689062487,-151.0,0.0001689,2]
[382636328,1756689062496,-480.0,0.0001689,2]
[382636329,1756689062506,-480.0,0.0001689,2]
[382636330,1756689062516,-555.33,0.0001689,2]
[382636331,1756689062526,-621.59548838,0.0001689,2]
[382636332,1756689062535,-572.22,0.0001689,2]
[382636333,1756689062546,-480.0,0.0001689,2]
[382636334,1756689062557,-918.17,0.0001689,2]
[382636335,1756689062567,-480.0,0.0001689,2]
[382636336,1756689062576,-903.61,0.0001689,2]
[382636337,1756689062586,-480.0,0.0001689,2]
[382636338,1756689062595,-480.0,0.0001689,2]
[382636339,1756689062604,-1164.13,0.0001689,2]
[382636340,1756689062614,-657.74,0.0001689,2]
[382636341,1756689062624,-480.0,0.0001689,2]
[382636342,1756689062634,-501.48,0.0001689,2]
[382636343,1756689062644,-559.37,0.0001689,2]
[382636344,1756689062654,-1351.09,0.0001689,2]
[382636345,1756689062663,-480.0,0.0001689,2]
[382636346,1756689062673,-480.0,0.0001689,2]
[382636347,1756689062682,-488.71,0.0001689,2]
[382636348,1756689062691,-794.12,0.0001689,2]
[382636349,1756689062701,-480.0,0.0001689,2]
[382636350,1756689062710,-480.0,0.0001689,2]
[382636351,1756689062719,-570.88,0.0001689,2]
[382636352,1756689062728,-480.0,0.0001689,2]
[382636353,1756689062737,-480.0,0.0001689,2]
[382636354,1756689062746,-480.0,0.0001689,2]
[382636355,1756689062755,-632.19,0.0001689,2]
[382636356,1756689062765,-520.00015841,0.0001689,2]
[382636357,1756689062774,-480.0,0.0001689,2]
[382636358,1756689062783,-480.0,0.0001689,2]
[382636359,1756689062793,-480.0,0.00016891,2]
[382636360,1756689062803,-160.16710454,0.00016891,2]
[382636361,1756689062812,-550.87,0.00016891,2]
[382636362,1756689062821,-159.0,0.000169,2]
[382636363,1756689062831,-159.0,0.000169,3]
[382636364,1756689062840,-159.0,0.000169,3]
[382636365,1756689062849,-159.0,0.000169,3]
[382636366,1756689062858,-151.0,0.000169,2]
[382636367,1756689062867,-1001.40685948,0.00016921,2]
[382636368,1756689062877,-1000.0,0.00016921,2]
[382636369,1756689062886,-1014.00608882,0.00016921,2]
[382636370,1756689062896,-1000.0,0.00016921,2]
[382636371,1756689062905,-1000.0,0.00016921,2]
[382636372,1756689062914,-1000.0,0.00016921,2]
[382636373,1756689062923,-1000.0,0.00016921,2]
[382636374,1756689062933,-1000.0,0.00016921,2]
[382636375,1756689062942,-1000.0,0.00016921,2]
[382636376,1756689062951,-1062.30944089,0.00016921,2]
[382636377,1756689062960,-1000.0,0.00016921,2]
[382636378,1756689062970,-1000.0,0.00016921,2]
[382636379,1756689062979,-1000.0,0.00016921,2]
[382636380,1756689062989,-1000.0,0.00016921,2]
[382636381,1756689062999,-751.57008637,0.00016921,2]
[382636382,1756689063008,-1000.0,0.00016921,2]
[382636383,1756689063017,-1000.0,0.00016921,2]
[382636384,1756689063026,-1000.0,0.00016921,2]
[382636385,1756689063035,-1000.0,0.00016921,2]
[382636386,1756689063046,-752.29239426,0.00016921,2]
[382636387,1756689063056,-1000.0,0.00016921,2]
[382636388,1756689063066,-1000.0,0.00016921,2]
[382636389,1756689063076,-1000.0,0.00016921,2]
[382636390,1756689063087,-524.36340573,0.00016921,2]
[382636391,1756689063096,-1000.0,0.00016921,2]
[382636392,1756689063105,-1000.0,0.00016921,2]
[382636393,1756689063116,-500.0,0.00016921,2]
[382636394,1756689063127,-1000.0,0.00016921,2]
[382636395,1756689063136,-1000.0,0.00016921,2]
[382636396,1756689063146,-500.0,0.00016921,2]
[382636397,1756689063157,-500.75883026,0.00016921,2]
[382636398,1756689063167,-1000.0,0.00016921,2]
[382636399,1756689063177,-1000.0,0.00016921,2]
[382636400,1756689063186,-713.79428328,0.00016921,2]
[382636401,1756689063197,-181.0,0.00016964,2]
[382636402,1756689063206,-790.0,0.00016997,2]
[382636403,1756689063216,-2988.10233505,0.00017,2]
[382636404,1756689063226,-1068.44038552,0.00017,2]
[382636405,1756689063236,-790.0,0.00017037,2]
[382636406,1756689063247,-790.0,0.00017044,2]
[382636407,1756689063257,-15524.26328136,0.00017047,2]
[382636408,1756689063267,-790.0,0.00017074,2]
[382636409,1756689063277,-151.0,0.000171,2]
[382636410,1756689063287,-56293.7655864,0.00017126,2]
[382636411,1756689063298,-40307.2335411,0.00017126,2]
[382636412,1756689063308,-151.0,0.00017126,2]
[382636413,1756689063319,-151.0,0.00017126,2]
[382636414,1756689063329,-259.411577,0.00017126,2]
[382636415,1756689063340,-480.0,0.00017145,2]
[382636416,1756689063350,-519.65,0.00017145,2]
[382636417,1756689063361,-480.0,0.00017146,2]
[382636418,1756689063372,-480.0,0.00017146,2]
[382636419,1756689063383,-1122.55,0.00017146,2]
[382636420,1756689063393,-1442.1,0.00017146,2]
[382636421,1756689063404,-480.0,0.00017147,2]
[382636422,1756689063415,-850.28,0.00017147,2]
[382636423,1756689063425,-480.0,0.00017147,2]
[382636424,1756689063434,-621.71,0.00017147,2]
[382636425,1756689063444,-2820.71,0.00017147,2]
[382636426,1756689063454,-711.48,0.00017147,2]
[382636427,1756689063464,-480.0,0.00017147,2]
[382636428,1756689063475,-1582.58,0.00017147,2]
[382636429,1756689063488,-513.5,0.00017147,2]
[382636430,1756689063498,-509.55,0.00017147,2]
[382636431,1756689063508,-682.77,0.00017147,2]
[382636432,1756689063519,-480.0,0.00017147,2]
[382636433,1756689063529,-1291.7,0.00017148,2]
[382636434,1756689063540,-568.19,0.00017148,2]
[382636435,1756689063550,-489.68,0.00017148,2]
[382636436,1756689063562,-587.99,0.00017148,2]
[382636437,1756689063572,-634.54,0.00017148,2]
[382636438,1756689063582,-2453.1,0.00017148,2]
[382636439,1756689063592,-2091.03,0.00017148,2]
[382636440,1756689063601,-356.65165734,0.00017149,2]
[382636441,1756689063611,-1558.0,0.00017149,2]
[382636442,1756689063621,-500.0,0.00017149,2]
[382636443,1756689063630,-923.5,0.00017149,2]
[382636444,1756689063640,-480.0,0.00017149,2]
[382636445,1756689063649,-480.0,0.00017149,2]
[382636446,1756689063659,-480.0,0.00017149,2]
[382636447,1756689063669,-480.0,0.00017149,2]
[382636448,1756689063678,-553.75,0.00017149,2]
[382636449,1756689063688,-480.0,0.00017149,2]
[382636450,1756689063697,-924.51,0.00017149,2]
[382636451,1756689063707,-480.0,0.00017149,2]
[382636452,1756689063717,-480.0,0.00017149,2]
[382636453,1756689063727,-790.0,0.0001715,2]
[382636454,1756689063737,-165.37089005,0.0001715,2]
[382636455,1756689063747,-500.0,0.0001715,2]
[382636456,1756689063756,-251.64224544,0.0001715,2]
[382636457,1756689063765,-480.0,0.0001715,2]
[382636458,1756689063775,-480.0,0.0001715,2]
[382636459,1756689063784,-480.0,0.0001715,2]
[382636460,1756689063794,-480.0,0.0001715,2]
[382636461,1756689063803,-480.0,0.0001715,2]
[382636462,1756689063812,-542.02,0.0001715,2]
[382636463,1756689063821,-586.15,0.0001715,2]
[382636464,1756689063830,-509.5,0.0001715,2]
[382636465,1756689063840,-1496.31,0.0001715,2]
[382636466,1756689063849,-480.0,0.0001715,2]
[382636467,1756689063859,-610.21,0.0001715,2]
[382636468,1756689063868,-480.0,0.0001715,2]
[382636469,1756689063878,-480.0,0.0001715,2]
[382636470,1756689063887,-663.98,0.0001715,2]
[382636471,1756689063896,-880.91,0.0001715,2]
[382636472,1756689063905,-468.1258802,0.0001715,2]
[382636473,1756689063915,-554.06,0.0001715,2]
[382636474,1756689063924,-1151.55,0.0001715,2]
[382636475,1756689063934,-798.54,0.0001715,2]
[382636476,1756689063943,-513.77,0.0001715,2]
[382636477,1756689063953,-480.0,0.0001715,2]
[382636478,1756689063962,-480.0,0.0001715,2]
[382636479,1756689063971,-480.0,0.0001715,2]
[382636480,1756689063981,-500.89,0.0001715,2]
[382636481,1756689063991,-480.0,0.0001715,2]
[382636482,1756689064000,-480.0,0.0001715,2]
[382636483,1756689064011,-582.7,0.0001715,2]
[382636484,1756689064021,-771.53,0.0001715,2]
[382636485,1756689064031,-480.0,0.0001715,2]
[382636486,1756689064043,-500.75,0.0001715,2]
[382636487,1756689064052,-480.0,0.0001715,2]
[382636488,1756689064062,-631.38,0.0001715,2]
[382636489,1756689064072,-981.71,0.0001715,2]
[382636490,1756689064081,-480.0,0.0001715,2]
[382636491,1756689064091,-994.5,0.0001715,2]
[382636492,1756689064101,-480.0,0.0001715,2]
[382636493,1756689064110,-480.0,0.0001715,2]
[382636494,1756689064120,-932.83,0.0001715,2]
[382636495,1756689064130,-1289.01,0.0001715,2]
[382636496,1756689064140,-514.08,0.0001715,2]
[382636497,1756689064149,-776.13,0.0001715,2]
[382636498,1756689064158,-480.0,0.0001715,2]
[382636499,1756689064169,-480.0,0.0001715,2]
[382636500,1756689064322,-480.0,0.0001715,2]
[382636501,1756689064342,-480.0,0.0001715,2]
[382636502,1756689064351,-945.39,0.0001715,2]
[382636503,1756689064360,-480.0,0.0001715,2]
[382636504,1756689064370,-659.03,0.0001715,2]
[382636505,1756689064380,-480.0,0.0001715,2]
[382636506,1756689064389,-1115.88,0.0001715,2]
[382636507,1756689064398,-210.46874851,0.0001715,2]
[382636508,1756689064407,-891.1,0.0001715,2]
[382636509,1756689064416,-857.01,0.0001715,2]
[382636510,1756689064426,-480.0,0.0001715,2]
[382636511,1756689064435,-860.37,0.0001715,2]
[382636512,1756689064446,-480.0,0.0001715,2]
[382636513,1756689064455,-281.81,0.0001715,2]
[382636514,1756689064465,-480.0,0.0001715,2]
[382636515,1756689064479,-947.37,0.0001715,2]
[382636516,1756689064490,-990.54,0.0001715,2]
[382636517,1756689064499,-480.0,0.0001715,2]
[382636518,1756689064509,-480.0,0.0001715,2]
[382636519,1756689064520,-480.0,0.0001715,2]
[382636520,1756689064529,-480.0,0.0001715,2]
[382636521,1756689064539,-480.0,0.0001715,2]
[382636522,1756689064548,-1031.24,0.0001715,2]
[382636523,1756689064558,-819.8,0.0001715,2]
[382636524,1756689064567,-706.26,0.00017152,2]
[382636525,1756689064576,-1177.7,0.00017152,2]
[382636526,1756689064586,-6455.49,0.00017152,2]
[382636527,1756689064595,-1485.05,0.00017152,2]
[382636528,1756689064604,-4337.97,0.00017152,2]
[382636529,1756689064613,-480.0,0.00017152,2]
[382636530,1756689064622,-1035.03,0.00017152,2]
[382636531,1756689064631,-6564.42,0.00017152,2]
[382636532,1756689064640,-3696.86,0.00017152,2]
[382636533,1756689064649,-2494.64,0.00017152,2]
[382636534,1756689064658,-656.5,0.00017152,2]
[382636535,1756689064668,-480.0,0.00017152,2]
[382636536,1756689064677,-2577.1,0.00017152,2]
[382636537,1756689064686,-3756.17,0.00017153,2]
[382636538,1756689064695,-480.0,0.00017153,2]
[382636539,1756689064705,-1310.71,0.00017153,2]
[382636540,1756689064714,-607.44,0.00017155,2]
[382636541,1756689064723,-480.0,0.00017155,2]
[382636542,1756689064732,-480.0,0.00017155,2]
[382636543,1756689064742,-1132.18,0.00017155,2]
[382636544,1756689064751,-601.44,0.00017155,2]
[382636545,1756689064760,-614.94830813,0.00017155,2]
[382636546,1756689064769,-480.0,0.00017155,2]
[382636547,1756689064779,-968.24,0.00017155,2]
[382636548,1756689064788,-685.39,0.00017155,2]
[382636549,1756689064797,-480.0,0.00017155,2]
[382636550,1756689064807,-480.0,0.00017155,2]
[382636551,1756689064816,-541.01,0.00017155,2]
[382636552,1756689064825,-1430.03,0.00017155,2]
[382636553,1756689064834,-480.0,0.00017155,2]
[382636554,1756689064843,-510.17,0.00017155,2]
[382636555,1756689064853,-480.0,0.00017155,2]
[382636556,1756689064863,-1359.72,0.00017155,2]
[382636557,1756689064872,-1128.95,0.00017155,2]
[382636558,1756689064881,-480.0,0.00017155,2]
[382636559,1756689064890,-480.0,0.00017155,2]
[382636560,1756689064900,-1271.94,0.00017155,2]
[382636561,1756689064909,-480.0,0.00017155,2]
[382636562,1756689064918,-480.0,0.00017155,2]
[382636563,1756689064927,-1247.55,0.00017155,2]
[382636564,1756689064937,-480.0,0.00017155,2]
[382636565,1756689064946,-480.0,0.00017155,2]
[382636566,1756689064955,-606.01,0.00017155,2]
[382636567,1756689064964,-480.0,0.00017155,2]
[382636568,1756689064974,-597.33,0.00017155,2]
[382636569,1756689064982,-480.0,0.00017155,2]
[382636570,1756689064992,-1018.09,0.00017155,2]
[382636571,1756689065002,-1127.08,0.00017155,2]
[382636572,1756689065011,-958.16,0.00017155,2]
[382636573,1756689065021,-1167.29,0.00017155,2]
[382636574,1756689065031,-480.0,0.00017155,2]
[382636575,1756689065040,-480.0,0.00017155,2]
[382636576,1756689065050,-480.0,0.00017155,2]
[382636577,1756689065061,-1072.46,0.00017155,2]
[382636578,1756689065071,-1440.15,0.00017155,2]
[382636579,1756689065081,-508.59,0.00017155,2]
[382636580,1756689065091,-480.0,0.00017155,2]
[382636581,1756689065100,-516.59,0.00017155,2]
[382636582,1756689065110,-480.0,0.00017155,2]
[382636583,1756689065120,-2022.72,0.00017155,2]
[382636584,1756689065129,-1267.73,0.00017155,2]
[382636585,1756689065138,-588.04,0.00017155,2]
[382636586,1756689065148,-480.0,0.00017157,2]
[382636587,1756689065157,-480.0,0.00017157,2]
[382636588,1756689065167,-480.0,0.00017157,2]
[382636589,1756689065177,-151.0,0.00017157,2]
[382636590,1756689065186,-480.0,0.00017157,2]
[382636591,1756689065196,-480.0,0.00017157,2]
[382636592,1756689065206,-480.0,0.00017157,2]
[382636593,1756689065216,-480.0,0.00017157,2]
[382636594,1756689065226,-480.0,0.00017157,2]
[382636595,1756689065235,-480.0,0.00017157,2]
[382636596,1756689065246,-480.0,0.00017157,2]
[382636597,1756689065256,-494.47,0.00017157,2]
[382636598,1756689065266,-838.76,0.00017157,2]
[382636599,1756689065276,-480.0,0.00017157,2]
[382636600,1756689065286,-915.12,0.00017157,2]
[382636601,1756689065299,-480.0,0.00017157,2]
[382636602,1756689065308,-1264.08,0.00017157,2]
[382636603,1756689065318,-480.0,0.00017157,2]
[382636604,1756689065327,-480.0,0.00017157,2]
[382636605,1756689065336,-480.0,0.00017157,2]
[382636606,1756689065346,-600.03,0.00017157,2]
[382636607,1756689065355,-480.0,0.00017157,2]
[382636608,1756689065364,-480.0,0.00017157,2]
[382636609,1756689065373,-480.0,0.00017157,2]
[382636610,1756689065381,-1228.82,0.00017157,2]
[382636611,1756689065390,-480.0,0.00017157,2]
[382636612,1756689065399,-480.0,0.00017157,2]
[382636613,1756689065407,-1158.01,0.00017157,2]
[382636614,1756689065416,-480.0,0.00017157,2]
[382636615,1756689065425,-480.0,0.00017157,2]
[382636616,1756689065434,-333.91199684,0.00017157,2]
[382636617,1756689065443,-480.0,0.00017157,2]
[382636618,1756689065452,-515.07,0.00017157,2]
[382636619,1756689065461,-480.0,0.00017157,2]
[382636620,1756689065470,-480.0,0.00017157,2]
[382636621,1756689065483,-480.0,0.00017157,2]
[382636622,1756689065492,-480.0,0.00017157,2]
[382636623,1756689065501,-480.0,0.00017157,2]
[382636624,1756689065509,-795.37,0.00017157,2]
[382636625,1756689065519,-626.57,0.00017157,2]
[382636626,1756689065528,-480.0,0.00017157,2]
[382636627,1756689065537,-635.1,0.00017157,2]
[382636628,1756689065549,-480.0,0.00017157,2]
[382636629,1756689065559,-480.0,0.00017157,2]
[382636630,1756689065568,-584.5,0.00017157,2]
[382636631,1756689065577,-480.0,0.00017157,2]
[382636632,1756689065586,-480.0,0.00017157,2]
[382636633,1756689065595,-751.25,0.00017157,2]
[382636634,1756689065604,-480.0,0.00017157,2]
[382636635,1756689065613,-1300.22,0.00017157,2]
[382636636,1756689065621,-480.0,0.00017157,2]
[382636637,1756689065630,-480.0,0.00017157,2]
[382636638,1756689065640,-480.0,0.00017157,2]
[382636639,1756689065648,-480.0,0.00017157,2]
[382636640,1756689065657,-480.0,0.00017157,2]
[382636641,1756689065666,-480.0,0.00017157,2]
[382636642,1756689065675,-586.99,0.00017157,2]
[382636643,1756689065684,-523.14,0.00017157,2]
[382636644,1756689065693,-480.0,0.00017157,2]
[382636645,1756689065702,-480.0,0.00017157,2]
[382636646,1756689065711,-480.0,0.00017157,2]
[382636647,1756689065720,-480.0,0.00017157,2]
[382636648,1756689065732,-480.0,0.00017157,2]
[382636649,1756689065740,-480.0,0.00017157,2]
[382636650,1756689065749,-550.15,0.00017157,2]
[382636651,1756689065758,-1306.53,0.00017157,2]
[382636652,1756689065767,-480.0,0.00017157,2]
[382636653,1756689065776,-480.0,0.00017157,2]
[382636654,1756689065785,-1285.91,0.00017157,2]
[382636655,1756689065796,-480.0,0.00017157,2]
[382636656,1756689065805,-570.71,0.00017157,2]
[382636657,1756689065814,-1226.75,0.00017157,2]
[382636658,1756689065823,-480.0,0.00017157,2]
[382636659,1756689065832,-480.0,0.00017157,2]
[382636660,1756689065840,-480.0,0.00017157,2]
[382636661,1756689065849,-480.0,0.00017157,2]
[382636662,1756689065858,-672.42,0.00017157,2]
[382636663,1756689065867,-480.0,0.00017157,2]
[382636664,1756689065876,-480.0,0.00017157,2]
[382636665,1756689065885,-480.0,0.00017157,2]
[382636666,1756689065894,-480.0,0.00017157,2]
[382636667,1756689065903,-480.0,0.00017157,2]
[382636668,1756689065912,-480.0,0.00017157,2]
[382636669,1756689065922,-748.29,0.00017157,2]
[382636670,1756689065931,-512.22,0.00017157,2]
[382636671,1756689065939,-789.05,0.00017159,2]
[382636672,1756689065949,-1480.4,0.00017159,2]
[382636673,1756689065958,-716.66,0.00017159,2]
[382636674,1756689065967,-480.0,0.0001716,2]
[382636675,1756689065975,-151.0,0.0001716,2]
[382636676,1756689065984,-151.0,0.0001716,2]
[382636677,1756689065993,-721.85,0.0001716,2]
[382636678,1756689066002,-1431.94,0.0001716,2]
[382636679,1756689066012,-779.49,0.0001716,2]
[382636680,1756689066021,-480.0,0.0001716,2]
[382636681,1756689066030,-919.52,0.0001716,2]
[382636682,1756689066040,-1348.81,0.0001716,2]
[382636683,1756689066049,-636.73,0.0001716,2]
[382636684,1756689066058,-1355.72,0.0001716,2]
[382636685,1756689066068,-480.0,0.0001716,2]
[382636686,1756689066077,-836.93,0.0001716,2]
[382636687,1756689066086,-757.88,0.0001716,2]
[382636688,1756689066096,-480.0,0.0001716,2]
[382636689,1756689066105,-665.21,0.0001716,2]
[382636690,1756689066114,-480.0,0.0001716,2]
[382636691,1756689066124,-480.0,0.0001716,2]
[382636692,1756689066133,-1027.14,0.0001716,2]
[382636693,1756689066143,-480.0,0.0001716,2]
[382636694,1756689066153,-692.73,0.0001716,2]
[382636695,1756689066162,-480.0,0.0001716,2]
[382636696,1756689066172,-480.0,0.0001716,2]
[382636697,1756689066182,-1065.89,0.0001716,2]
[382636698,1756689066192,-995.1,0.0001716,2]
[382636699,1756689066201,-480.0,0.0001716,2]
[382636700,1756689066211,-1773.24,0.0001716,2]
[382636701,1756689066220,-480.0,0.0001716,2]
[382636702,1756689066230,-480.0,0.0001716,2]
[382636703,1756689066240,-457.78735271,0.0001716,2]
[382636704,1756689066249,-666.36,0.0001716,2]
[382636705,1756689066259,-480.0,0.0001716,2]
[382636706,1756689066268,-480.0,0.0001716,2]
[382636707,1756689066278,-480.0,0.0001716,2]
[382636708,1756689066287,-480.0,0.0001716,2]
[382636709,1756689066299,-480.0,0.0001716,2]
[382636710,1756689066309,-480.0,0.0001716,2]
[382636711,1756689066319,-640.96,0.0001716,2]
[382636712,1756689066328,-480.0,0.0001716,2]
[382636713,1756689066338,-752.79672784,0.00017162,2]
[382636714,1756689066347,-327.0,0.00017162,2]
[382636715,1756689066357,-161.93404135,0.00017162,2]
[382636716,1756689066366,-8066.52242356,0.00017164,2]
[382636717,1756689066376,-480.0,0.00017164,2]
[382636718,1756689066385,-480.0,0.00017164,2]
[382636719,1756689066395,-480.0,0.00017164,2]
[382636720,1756689066405,-480.0,0.00017164,2]
[382636721,1756689066414,-480.0,0.00017164,2]
[382636722,1756689066424,-480.0,0.00017164,2]
[382636723,1756689066433,-480.0,0.00017164,2]
[382636724,1756689066443,-680.54,0.00017164,2]
[382636725,1756689066453,-480.0,0.00017164,2]
[382636726,1756689066463,-305.55075169,0.00017164,2]
[382636727,1756689066473,-480.0,0.00017164,2]
[382636728,1756689066486,-480.0,0.00017164,2]
[382636729,1756689066495,-546.44,0.00017164,2]
[382636730,1756689066505,-257.29803267,0.00017164,2]
[382636731,1756689066515,-480.0,0.00017164,2]
[382636732,1756689066527,-480.0,0.00017164,2]
[382636733,1756689066536,-480.0,0.00017164,2]
[382636734,1756689066548,-480.0,0.00017164,2]
[382636735,1756689066558,-480.0,0.00017164,2]
[382636736,1756689066567,-838.22,0.00017164,2]
[382636737,1756689066578,-480.0,0.00017164,2]
[382636738,1756689066587,-480.0,0.00017164,2]
[382636739,1756689066597,-480.0,0.00017164,2]
[382636740,1756689066607,-500.0,0.00017164,2]
[382636741,1756689066616,-480.0,0.00017164,2]
[382636742,1756689066626,-480.0,0.00017164,2]
[382636743,1756689066636,-480.0,0.00017164,2]
[382636744,1756689066646,-480.0,0.00017164,2]
[382636745,1756689066656,-193.73538634,0.00017164,2]
[382636746,1756689066712,-480.0,0.00017164,2]
[382636747,1756689066721,-480.0,0.00017164,2]
[382636748,1756689066732,-745.56,0.00017164,2]
[382636749,1756689066741,-1078.85,0.00017164,2]
[382636750,1756689066751,-480.0,0.00017164,2]
[382636751,1756689066760,-1007.05,0.00017164,2]
[382636752,1756689066770,-498.04,0.00017164,2]
[382636753,1756689066780,-480.0,0.00017164,2]
[382636754,1756689066791,-480.0,0.00017164,2]
[382636755,1756689066801,-555.33,0.00017164,2]
[382636756,1756689066811,-572.22,0.00017164,2]
[382636757,1756689066820,-480.0,0.00017164,2]
[382636758,1756689066830,-918.17,0.00017164,2]
[382636759,1756689066839,-587.65353831,0.00017164,2]
[382636760,1756689066848,-903.61,0.00017164,2]
[382636761,1756689066857,-480.0,0.00017164,2]
[382636762,1756689066867,-267.69012047,0.00017164,2]
[382636763,1756689066876,-1164.13,0.00017164,2]
[382636764,1756689066885,-657.74,0.00017164,2]
[382636765,1756689066895,-480.0,0.00017164,2]
[382636766,1756689066910,-501.48,0.00017164,2]
[382636767,1756689066920,-559.37,0.00017164,2]
[382636768,1756689066930,-1351.09,0.00017164,2]
[382636769,1756689066940,-480.0,0.00017164,2]
[382636770,1756689066950,-480.0,0.00017164,2]
[382636771,1756689066959,-488.71,0.00017164,2]
[382636772,1756689066968,-794.12,0.00017164,2]
[382636773,1756689066977,-480.0,0.00017164,2]
[382636774,1756689066986,-570.88,0.00017164,2]
[382636775,1756689066995,-354.96544591,0.00017164,2]
[382636776,1756689067005,-575.60032032,0.00017164,2]
[382636777,1756689067014,-480.0,0.00017164,2]
[382636778,1756689067023,-632.19,0.00017164,2]
[382636779,1756689067032,-302.59980593,0.00017164,2]
[382636780,1756689067047,-480.0,0.00017164,2]
[382636781,1756689067063,-394.36,0.00017165,2]
[382636782,1756689067072,-550.87,0.00017165,2]
[382636783,1756689067082,-151.0,0.00017168,2]
[382636784,1756689067091,-500.0,0.00017173,2]
[382636785,1756689067100,-500.0,0.00017173,2]
[382636786,1756689067109,-500.0,0.00017173,2]
[382636787,1756689067118,-500.0,0.00017173,2]
[382636788,1756689067127,-162.28722497,0.00017173,2]
[382636789,1756689067140,-500.0,0.00017173,2]
[382636790,1756689067150,-500.0,0.00017173,2]
[382636791,1756689067160,-500.0,0.00017173,2]
[382636792,1756689067169,-608.87160144,0.00017173,2]
[382636793,1756689067180,-300.02526822,0.00017173,2]
[382636794,1756689067189,-500.0,0.00017173,2]
[382636795,1756689067199,-500.0,0.00017173,2]
[382636796,1756689067210,-500.0,0.00017173,2]
[382636797,1756689067219,-501.46880023,0.00017173,2]
[382636798,1756689067229,-500.0,0.00017173,2]
[382636799,1756689067239,-500.0,0.00017173,2]
[382636800,1756689067249,-500.0,0.00017173,2]
[382636801,1756689067259,-501.65535603,0.00017173,2]
[382636802,1756689067269,-500.0,0.00017173,2]
[382636803,1756689067279,-500.13222882,0.00017173,2]
[382636804,1756689067288,-810.54015159,0.00017178,2]
[382636805,1756689067302,-160.0,0.00017183,2]
[382636806,1756689067311,-790.0,0.0001719,2]
[382636807,1756689067320,-660.0,0.00017213,2]
[382636808,1756689067330,-790.0,0.00017214,2]
[382636809,1756689067339,-790.0,0.00017224,2]
[382636810,1756689067348,-660.0,0.00017249,2]
[382636811,1756689067357,-660.0,0.00017255,2]
[382636812,1756689067366,-975.0,0.00017323,2]
[382636813,1756689067375,-2152.0,0.00017323,2]
[382636814,1756689067384,-632.0,0.00017323,2]